[Event "Titled Tuesday Blitz February 28 Early 2023"]
[White "Kriti Mayur Patel"]
[Black "Bilan, Danila"]
[WhiteFideId "35061780"]
[BlackFideId "24161918"]
[WhiteElo "1306"]
[BlackElo "2182"]
[Result "0-1"]
[Round "01"]
[TimeControl "180+2"]
[Date "2023.02.28"]
[WhiteClock "0:00:53"]
[BlackClock "0:01:02"]

1. e4 {[%clk 0:03:00]}  c6 {[%clk 0:03:00]} 2. d4 {[%clk 0:02:59]}  d5 {[%clk 0:03:01]} 3. exd5 {[%clk 0:03:00]}  cxd5 {[%clk 0:03:01]} 4. Bd3 {[%clk 0:03:00]}  Nc6 {[%clk 0:03:01]} 5. c3 {[%clk 0:03:01]}  Qc7 {[%clk 0:02:58]} 6. Ne2 {[%clk 0:03:00]}  Bg4 {[%clk 0:02:57]} 7. f3 {[%clk 0:02:59]}  Bd7 {[%clk 0:02:58]} 8. Bf4 {[%clk 0:02:56]}  e5 {[%clk 0:02:59]} 9. Bg3 {[%clk 0:02:53]}  Bd6 {[%clk 0:02:53]} 10. O-O {[%clk 0:02:51]}  Nf6 {[%clk 0:02:46]} 11. dxe5 {[%clk 0:02:51]}  Nxe5 {[%clk 0:02:46]} 12. Nd4 {[%clk 0:02:49]}  O-O {[%clk 0:02:13]} 13. Re1 {[%clk 0:02:42]}  Rfe8 {[%clk 0:01:59]} 14. Bb5 {[%clk 0:02:28]}  Nc4 {[%clk 0:01:39]} 15. Rxe8+ {[%clk 0:02:08]}  Rxe8 {[%clk 0:01:37]} 16. Bxd6 {[%clk 0:02:08]}  Qxd6 {[%clk 0:01:37]} 17. Bxc4 {[%clk 0:02:08]}  dxc4 {[%clk 0:01:37]} 18. Nd2 {[%clk 0:02:08]}  b5 {[%clk 0:01:34]} 19. a4 {[%clk 0:02:07]}  a6 {[%clk 0:01:30]} 20. axb5 {[%clk 0:02:06]}  axb5 {[%clk 0:01:30]} 21. Ra5 {[%clk 0:02:02]}  g6 {[%clk 0:01:27]} 22. Nxb5 {[%clk 0:01:57]}  Qb6+ {[%clk 0:01:27]} 23. Nd4 {[%clk 0:01:45]}  Qxa5 {[%clk 0:01:26]} 24. Nxc4 {[%clk 0:01:46]}  Qd5 {[%clk 0:01:16]} 25. Nb6 {[%clk 0:01:38]}  Qc5 {[%clk 0:01:13]} 26. Nxd7 {[%clk 0:01:33]}  Nxd7 {[%clk 0:01:14]} 27. h3 {[%clk 0:01:28]}  Ne5 {[%clk 0:01:11]} 28. Kh2 {[%clk 0:01:25]}  Nc6 {[%clk 0:01:09]} 29. Qa4 {[%clk 0:01:23]}  Qe5+ {[%clk 0:01:03]} 30. g3 {[%clk 0:01:09]}  Nxd4 {[%clk 0:01:01]} 31. Qxd4 {[%clk 0:00:55]}  Qe2+ {[%clk 0:01:00]} 32. Kg1 {[%clk 0:00:54]}  Qe1+ {[%clk 0:01:01]} 33. Kg2 {[%clk 0:00:53]}  Re2+ {[%clk 0:01:01]} 34. Qf2 {[%clk 0:00:53]}  Rxf2# {[%clk 0:01:02]} 0-1


[Site "https://www.chess.com"]

[Event "Titled Tuesday Blitz February 28 Early 2023"]
[White "Florescu, Codrut-Constantin"]
[Black "Vargas, Mauricio"]
[WhiteFideId "1202200"]
[BlackFideId "4404572"]
[WhiteElo "2191"]
[BlackElo "2025"]
[Result "1-0"]
[Round "01"]
[TimeControl "180+2"]
[Date "2023.02.28"]
[WhiteClock "0:02:28"]
[BlackClock "0:00:46"]

1. e4 {[%clk 0:03:00]}  c5 {[%clk 0:02:57]} 2. Nf3 {[%clk 0:02:59]}  d6 {[%clk 0:02:56]} 3. d3 {[%clk 0:02:58]}  Nc6 {[%clk 0:02:52]} 4. g3 {[%clk 0:02:58]}  e5 {[%clk 0:02:32]} 5. h3 {[%clk 0:02:57]}  f5 {[%clk 0:02:23]} 6. exf5 {[%clk 0:02:56]}  Bxf5 {[%clk 0:02:21]} 7. Bg2 {[%clk 0:02:57]}  Nf6 {[%clk 0:02:17]} 8. Nc3 {[%clk 0:02:56]}  Be7 {[%clk 0:02:13]} 9. O-O {[%clk 0:02:55]}  O-O {[%clk 0:02:12]} 10. Ng5 {[%clk 0:02:52]}  h6 {[%clk 0:02:05]} 11. Nge4 {[%clk 0:02:51]}  Nd4 {[%clk 0:01:45]} 12. Nxf6+ {[%clk 0:02:48]}  Rxf6 {[%clk 0:01:37]} 13. g4 {[%clk 0:02:47]}  Bc8 {[%clk 0:01:33]} 14. f4 {[%clk 0:02:46]}  exf4 {[%clk 0:01:26]} 15. Bxf4 {[%clk 0:02:47]}  Qf8 {[%clk 0:01:19]} 16. Nd5 {[%clk 0:02:46]}  Rf7 {[%clk 0:01:06]} 17. c3 {[%clk 0:02:45]}  Ne6 {[%clk 0:01:02]} 18. Nxe7+ {[%clk 0:02:42]}  Qxe7 {[%clk 0:01:00]} 19. Bg3 {[%clk 0:02:41]}  Rb8 {[%clk 0:00:51]} 20. Rxf7 {[%clk 0:02:37]}  Kxf7 {[%clk 0:00:50]} 21. Qe2 {[%clk 0:02:33]}  Kg8 {[%clk 0:00:47]} 22. Bd5 {[%clk 0:02:29]}  Kh8 {[%clk 0:00:46]} 23. Re1 {[%clk 0:02:28]} 1-0


[Site "https://www.chess.com"]

[Event "Titled Tuesday Blitz February 28 Early 2023"]
[White "Borrmann, Laurenz"]
[Black "Lohani, Sujana"]
[WhiteFideId "312187930"]
[BlackFideId "12311987"]
[WhiteElo "2307"]
[BlackElo "1718"]
[Result "1-0"]
[Round "01"]
[TimeControl "180+2"]
[Date "2023.02.28"]
[WhiteClock "0:00:01"]
[BlackClock "0:00:03"]

1. e4 {[%clk 0:02:52]}  g6 {[%clk 0:03:00]} 2. d4 {[%clk 0:02:51]}  Bg7 {[%clk 0:03:00]} 3. Nc3 {[%clk 0:02:52]}  d6 {[%clk 0:03:00]} 4. Be3 {[%clk 0:02:52]}  Nf6 {[%clk 0:03:01]} 5. Qd2 {[%clk 0:02:49]}  Ng4 {[%clk 0:02:59]} 6. Bg5 {[%clk 0:02:47]}  h6 {[%clk 0:02:58]} 7. Bh4 {[%clk 0:02:46]}  Nd7 {[%clk 0:02:48]} 8. Nf3 {[%clk 0:02:31]}  c5 {[%clk 0:02:48]} 9. d5 {[%clk 0:02:25]}  Qb6 {[%clk 0:02:46]} 10. O-O-O {[%clk 0:02:14]}  Nde5 {[%clk 0:02:18]} 11. Bb5+ {[%clk 0:01:55]}  Bd7 {[%clk 0:02:16]} 12. Bxd7+ {[%clk 0:01:47]}  Nxd7 {[%clk 0:02:15]} 13. Rhe1 {[%clk 0:01:45]}  Nge5 {[%clk 0:02:00]} 14. Nxe5 {[%clk 0:01:31]}  Nxe5 {[%clk 0:01:59]} 15. Qe2 {[%clk 0:01:31]}  Qb4 {[%clk 0:01:30]} 16. a3 {[%clk 0:01:15]}  Qb6 {[%clk 0:01:27]} 17. f4 {[%clk 0:00:56]}  Nd7 {[%clk 0:01:17]} 18. e5 {[%clk 0:00:53]}  dxe5 {[%clk 0:01:07]} 19. d6 {[%clk 0:00:49]}  e6 {[%clk 0:00:50]} 20. Nb5 {[%clk 0:00:23]}  exf4 {[%clk 0:00:41]} 21. Be7 {[%clk 0:00:05]}  Rc8 {[%clk 0:00:34]} 22. a4 {[%clk 0:00:03]}  a6 {[%clk 0:00:33]} 23. Nc7+ {[%clk 0:00:02]}  Rxc7 {[%clk 0:00:32]} 24. dxc7 {[%clk 0:00:03]}  Qxb2+ {[%clk 0:00:29]} 25. Kd2 {[%clk 0:00:04]}  Bc3+ {[%clk 0:00:27]} 26. Kd3 {[%clk 0:00:04]}  c4+ {[%clk 0:00:19]} 27. Ke4 {[%clk 0:00:03]}  Kxe7 {[%clk 0:00:14]} 28. Qxc4 {[%clk 0:00:03]}  Rc8 {[%clk 0:00:07]} 29. Kf3 {[%clk 0:00:01]}  Qb6 {[%clk 0:00:04]} 30. Qxc3 {[%clk 0:00:01]}  Rxc7 {[%clk 0:00:03]} 31. Qd3 {[%clk 0:00:01]}  Qc6+ {[%clk 0:00:03]} 32. Kf2 {[%clk 0:00:01]} 1-0


[Site "https://www.chess.com"]

[Event "Titled Tuesday Blitz February 28 Early 2023"]
[White "Nan, M K Khine Hlyan"]
[Black "Ljukin, Sergei"]
[WhiteFideId "13002899"]
[BlackFideId "14102200"]
[WhiteElo "1943"]
[BlackElo "2312"]
[Result "0-1"]
[Round "01"]
[TimeControl "180+2"]
[Date "2023.02.28"]
[WhiteClock "0:00:21"]
[BlackClock "0:00:10"]

1. e4 {[%clk 0:02:55]}  e6 {[%clk 0:02:51]} 2. d4 {[%clk 0:02:52]}  d5 {[%clk 0:02:52]} 3. Bd3 {[%clk 0:02:46]}  dxe4 {[%clk 0:02:50]} 4. Bxe4 {[%clk 0:02:46]}  Nf6 {[%clk 0:02:51]} 5. Bd3 {[%clk 0:02:40]}  c5 {[%clk 0:02:51]} 6. dxc5 {[%clk 0:02:35]}  Bxc5 {[%clk 0:02:51]} 7. Bb5+ {[%clk 0:02:34]}  Bd7 {[%clk 0:02:49]} 8. Bxd7+ {[%clk 0:02:33]}  Nbxd7 {[%clk 0:02:49]} 9. Nf3 {[%clk 0:02:33]}  O-O {[%clk 0:02:49]} 10. O-O {[%clk 0:02:33]}  a6 {[%clk 0:02:44]} 11. Nc3 {[%clk 0:02:32]}  b5 {[%clk 0:02:44]} 12. Bg5 {[%clk 0:02:31]}  Qb6 {[%clk 0:02:44]} 13. a4 {[%clk 0:02:24]}  b4 {[%clk 0:02:41]} 14. a5 {[%clk 0:02:24]}  Qc7 {[%clk 0:02:37]} 15. Na4 {[%clk 0:02:22]}  Ba7 {[%clk 0:02:37]} 16. Qe2 {[%clk 0:02:11]}  Qxa5 {[%clk 0:02:33]} 17. b3 {[%clk 0:02:00]}  Qf5 {[%clk 0:02:15]} 18. Nb2 {[%clk 0:01:53]}  Ne4 {[%clk 0:02:14]} 19. Be3 {[%clk 0:01:46]}  Nc3 {[%clk 0:02:14]} 20. Qc4 {[%clk 0:01:41]}  Bxe3 {[%clk 0:02:10]} 21. fxe3 {[%clk 0:01:38]}  Qxc2 {[%clk 0:02:07]} 22. Na4 {[%clk 0:01:28]}  a5 {[%clk 0:02:03]} 23. Rac1 {[%clk 0:01:25]}  Ne2+ {[%clk 0:01:53]} 24. Kh1 {[%clk 0:01:18]}  Qxc4 {[%clk 0:01:52]} 25. Rxc4 {[%clk 0:01:17]}  Rfc8 {[%clk 0:01:51]} 26. Rxc8+ {[%clk 0:01:04]}  Rxc8 {[%clk 0:01:50]} 27. Nd4 {[%clk 0:01:00]}  Rc1 {[%clk 0:01:38]} 28. Rxc1 {[%clk 0:00:59]}  Nxc1 {[%clk 0:01:39]} 29. Nb2 {[%clk 0:00:59]}  e5 {[%clk 0:01:38]} 30. Nc6 {[%clk 0:00:57]}  Nxb3 {[%clk 0:01:38]} 31. Nc4 {[%clk 0:00:58]}  a4 {[%clk 0:01:37]} 32. Nxb4 {[%clk 0:00:57]}  f6 {[%clk 0:01:35]} 33. Na2 {[%clk 0:00:57]}  Kf7 {[%clk 0:01:30]} 34. Nc3 {[%clk 0:00:57]}  Ndc5 {[%clk 0:01:29]} 35. Nd6+ {[%clk 0:00:56]}  Ke6 {[%clk 0:01:29]} 36. Nc4 {[%clk 0:00:53]}  f5 {[%clk 0:01:10]} 37. Kg1 {[%clk 0:00:54]}  g5 {[%clk 0:01:10]} 38. Kf2 {[%clk 0:00:54]}  f4 {[%clk 0:01:11]} 39. e4 {[%clk 0:00:53]}  Nd4 {[%clk 0:01:04]} 40. Na3 {[%clk 0:00:45]}  g4 {[%clk 0:01:01]} 41. Nc4 {[%clk 0:00:43]}  h5 {[%clk 0:00:59]} 42. Na3 {[%clk 0:00:38]}  h4 {[%clk 0:00:59]} 43. Nc4 {[%clk 0:00:36]}  g3+ {[%clk 0:00:59]} 44. hxg3 {[%clk 0:00:36]}  hxg3+ {[%clk 0:00:59]} 45. Kf1 {[%clk 0:00:36]}  Nc2 {[%clk 0:00:55]} 46. Nd2 {[%clk 0:00:27]}  Ne3+ {[%clk 0:00:49]} 47. Kg1 {[%clk 0:00:25]}  a3 {[%clk 0:00:46]} 48. Ndb1 {[%clk 0:00:25]}  Nxe4 {[%clk 0:00:39]} 49. Na2 {[%clk 0:00:23]}  Nc4 {[%clk 0:00:35]} 50. Nb4 {[%clk 0:00:22]}  Ned2 {[%clk 0:00:30]} 51. Nc3 {[%clk 0:00:21]}  e4 {[%clk 0:00:27]} 52. Nc2 {[%clk 0:00:18]}  f3 {[%clk 0:00:19]} 53. Nd4+ {[%clk 0:00:18]}  Kf6 {[%clk 0:00:17]} 54. gxf3 {[%clk 0:00:18]}  exf3 {[%clk 0:00:17]} 55. Nxf3 {[%clk 0:00:18]}  Nxf3+ {[%clk 0:00:17]} 56. Kg2 {[%clk 0:00:19]}  Nfd2 {[%clk 0:00:14]} 57. Kxg3 {[%clk 0:00:19]}  Ke5 {[%clk 0:00:14]} 58. Na2 {[%clk 0:00:19]}  Kd4 {[%clk 0:00:13]} 59. Kf2 {[%clk 0:00:20]}  Kd3 {[%clk 0:00:12]} 60. Ke1 {[%clk 0:00:21]}  Kc2 {[%clk 0:00:12]} 61. Nb4+ {[%clk 0:00:20]}  Kb3 {[%clk 0:00:12]} 62. Nd3 {[%clk 0:00:19]}  Kc3 {[%clk 0:00:10]} 63. Nc1 {[%clk 0:00:19]}  Nb3 {[%clk 0:00:08]} 64. Na2+ {[%clk 0:00:19]}  Kb2 {[%clk 0:00:08]} 65. Nb4 {[%clk 0:00:19]}  Nc5 {[%clk 0:00:06]} 66. Nd3+ {[%clk 0:00:15]}  Nxd3+ {[%clk 0:00:06]} 67. Ke2 {[%clk 0:00:16]}  a2 {[%clk 0:00:07]} 68. Kxd3 {[%clk 0:00:17]}  a1=Q {[%clk 0:00:07]} 69. Kxc4 {[%clk 0:00:18]}  Qa4+ {[%clk 0:00:07]} 70. Kc5 {[%clk 0:00:19]}  Kc3 {[%clk 0:00:08]} 71. Kd5 {[%clk 0:00:20]}  Qb5+ {[%clk 0:00:08]} 72. Ke6 {[%clk 0:00:21]}  Qc5 {[%clk 0:00:08]} 73. Kd7 {[%clk 0:00:20]}  Kd4 {[%clk 0:00:09]} 74. Ke8 {[%clk 0:00:21]}  Qc7 {[%clk 0:00:09]} 75. Kf8 {[%clk 0:00:20]}  Ke5 {[%clk 0:00:09]} 76. Kg8 {[%clk 0:00:20]}  Kf6 {[%clk 0:00:10]} 77. Kh8 {[%clk 0:00:21]}  Qg7# {[%clk 0:00:10]} 0-1


[Site "https://www.chess.com"]

[Event "Titled Tuesday Blitz February 28 Early 2023"]
[White "Carlsen, Magnus"]
[Black "Rosen, Eric"]
[WhiteFideId "1503014"]
[BlackFideId "2032562"]
[WhiteElo "2852"]
[BlackElo "2359"]
[Result "1-0"]
[Round "02"]
[TimeControl "180+2"]
[Date "2023.02.28"]
[WhiteClock "0:01:42"]
[BlackClock "0:00:04"]

1. e4 {[%clk 0:02:39]}  c5 {[%clk 0:02:58]} 2. Nc3 {[%clk 0:02:39]}  Nc6 {[%clk 0:02:58]} 3. Bb5 {[%clk 0:02:37]}  Nd4 {[%clk 0:02:57]} 4. Nf3 {[%clk 0:02:36]}  a6 {[%clk 0:02:49]} 5. Bc4 {[%clk 0:02:34]}  e6 {[%clk 0:02:41]} 6. Nxd4 {[%clk 0:02:32]}  cxd4 {[%clk 0:02:41]} 7. Ne2 {[%clk 0:02:32]}  Bc5 {[%clk 0:02:39]} 8. O-O {[%clk 0:02:31]}  Ne7 {[%clk 0:02:39]} 9. c3 {[%clk 0:02:30]}  Nc6 {[%clk 0:02:29]} 10. b4 {[%clk 0:02:30]}  Ba7 {[%clk 0:02:29]} 11. Bb2 {[%clk 0:02:27]}  d5 {[%clk 0:01:55]} 12. exd5 {[%clk 0:02:25]}  exd5 {[%clk 0:01:56]} 13. Bb3 {[%clk 0:02:24]}  O-O {[%clk 0:01:48]} 14. Nxd4 {[%clk 0:02:23]}  Nxd4 {[%clk 0:01:36]} 15. cxd4 {[%clk 0:02:24]}  Be6 {[%clk 0:01:37]} 16. Rc1 {[%clk 0:02:23]}  Qh4 {[%clk 0:01:35]} 17. Qf3 {[%clk 0:02:18]}  Rfd8 {[%clk 0:01:12]} 18. g3 {[%clk 0:02:17]}  Qe7 {[%clk 0:01:09]} 19. a3 {[%clk 0:02:14]}  Qd7 {[%clk 0:01:04]} 20. Rfe1 {[%clk 0:02:13]}  Rac8 {[%clk 0:01:04]} 21. Rc5 {[%clk 0:02:10]}  Bxc5 {[%clk 0:00:56]} 22. dxc5 {[%clk 0:02:10]}  d4 {[%clk 0:00:57]} 23. Bxe6 {[%clk 0:02:08]}  fxe6 {[%clk 0:00:58]} 24. Qe4 {[%clk 0:02:06]}  Qd5 {[%clk 0:00:35]} 25. f3 {[%clk 0:02:07]}  Qxe4 {[%clk 0:00:34]} 26. Rxe4 {[%clk 0:02:05]}  d3 {[%clk 0:00:24]} 27. Kf2 {[%clk 0:02:03]}  Rc6 {[%clk 0:00:24]} 28. Ke3 {[%clk 0:02:02]}  b6 {[%clk 0:00:24]} 29. cxb6 {[%clk 0:02:00]}  Rxb6 {[%clk 0:00:25]} 30. Rc4 {[%clk 0:02:01]}  Rbd6 {[%clk 0:00:23]} 31. Be5 {[%clk 0:01:59]}  Rd5 {[%clk 0:00:23]} 32. Ke4 {[%clk 0:01:59]}  R8d7 {[%clk 0:00:22]} 33. Rc6 {[%clk 0:01:58]}  a5 {[%clk 0:00:22]} 34. Rxe6 {[%clk 0:01:57]}  axb4 {[%clk 0:00:22]} 35. axb4 {[%clk 0:01:57]}  Rb5 {[%clk 0:00:16]} 36. Bc3 {[%clk 0:01:57]}  Kf7 {[%clk 0:00:15]} 37. Rc6 {[%clk 0:01:56]}  Rb8 {[%clk 0:00:10]} 38. f4 {[%clk 0:01:55]}  Re8+ {[%clk 0:00:10]} 39. Be5 {[%clk 0:01:55]}  Red8 {[%clk 0:00:07]} 40. b5 {[%clk 0:01:53]}  Ra8 {[%clk 0:00:03]} 41. b6 {[%clk 0:01:52]}  Ra4+ {[%clk 0:00:04]} 42. Ke3 {[%clk 0:01:50]}  Rb4 {[%clk 0:00:04]} 43. g4 {[%clk 0:01:49]}  Rb3 {[%clk 0:00:04]} 44. h4 {[%clk 0:01:48]}  Rb1 {[%clk 0:00:05]} 45. h5 {[%clk 0:01:45]}  Re1+ {[%clk 0:00:05]} 46. Kf3 {[%clk 0:01:45]}  Rb1 {[%clk 0:00:06]} 47. g5 {[%clk 0:01:44]}  g6 {[%clk 0:00:06]} 48. hxg6+ {[%clk 0:01:44]}  hxg6 {[%clk 0:00:07]} 49. Rf6+ {[%clk 0:01:44]}  Ke7 {[%clk 0:00:06]} 50. Rxg6 {[%clk 0:01:44]}  Rb2 {[%clk 0:00:04]} 51. Bxb2 {[%clk 0:01:42]} 1-0


[Site "https://www.chess.com"]

[Event "Titled Tuesday Blitz February 28 Early 2023"]
[White "Andreikin, Dmitry"]
[Black "Md, Imran"]
[WhiteFideId "4158814"]
[BlackFideId "25748580"]
[WhiteElo "2736"]
[BlackElo "2217"]
[Result "1-0"]
[Round "02"]
[TimeControl "180+2"]
[Date "2023.02.28"]
[WhiteClock "0:00:04"]
[BlackClock "0:00:14"]

1. d4 {[%clk 0:03:00]}  d5 {[%clk 0:02:53]} 2. c4 {[%clk 0:03:00]}  e6 {[%clk 0:02:50]} 3. Nc3 {[%clk 0:02:58]}  Nf6 {[%clk 0:02:47]} 4. cxd5 {[%clk 0:02:56]}  exd5 {[%clk 0:02:46]} 5. Bg5 {[%clk 0:02:56]}  Be7 {[%clk 0:02:44]} 6. e3 {[%clk 0:02:56]}  O-O {[%clk 0:02:44]} 7. Bd3 {[%clk 0:02:56]}  h6 {[%clk 0:02:43]} 8. Bh4 {[%clk 0:02:55]}  c6 {[%clk 0:02:43]} 9. Nge2 {[%clk 0:02:50]}  Ne4 {[%clk 0:02:42]} 10. Bxe7 {[%clk 0:02:49]}  Qxe7 {[%clk 0:02:40]} 11. Qc2 {[%clk 0:02:49]}  Nd6 {[%clk 0:02:34]} 12. O-O {[%clk 0:02:46]}  Nd7 {[%clk 0:02:32]} 13. Ng3 {[%clk 0:02:42]}  Nf6 {[%clk 0:02:26]} 14. Rae1 {[%clk 0:02:41]}  Qc7 {[%clk 0:02:12]} 15. f3 {[%clk 0:02:38]}  c5 {[%clk 0:02:09]} 16. Kh1 {[%clk 0:02:13]}  cxd4 {[%clk 0:02:04]} 17. exd4 {[%clk 0:02:13]}  Be6 {[%clk 0:02:00]} 18. Nce4 {[%clk 0:02:06]}  Qd8 {[%clk 0:01:57]} 19. Nc5 {[%clk 0:02:02]}  Bc8 {[%clk 0:01:55]} 20. Qd2 {[%clk 0:01:51]}  b6 {[%clk 0:01:52]} 21. Na4 {[%clk 0:01:51]}  Re8 {[%clk 0:01:50]} 22. Nc3 {[%clk 0:01:50]}  Be6 {[%clk 0:01:47]} 23. Bb1 {[%clk 0:01:47]}  Rc8 {[%clk 0:01:46]} 24. Qd3 {[%clk 0:01:46]}  g6 {[%clk 0:01:44]} 25. Qd2 {[%clk 0:01:41]}  Kg7 {[%clk 0:01:44]} 26. Qf4 {[%clk 0:01:40]}  Nc4 {[%clk 0:01:37]} 27. Qc1 {[%clk 0:01:19]}  Qd6 {[%clk 0:01:28]} 28. f4 {[%clk 0:01:15]}  Bd7 {[%clk 0:01:24]} 29. Re5 {[%clk 0:01:14]}  b5 {[%clk 0:01:11]} 30. b3 {[%clk 0:00:47]}  Nb6 {[%clk 0:01:02]} 31. Qd2 {[%clk 0:00:44]}  Qb4 {[%clk 0:01:00]} 32. Rf3 {[%clk 0:00:36]}  Ng4 {[%clk 0:00:57]} 33. h3 {[%clk 0:00:29]}  Nxe5 {[%clk 0:00:55]} 34. fxe5 {[%clk 0:00:30]}  Qe7 {[%clk 0:00:48]} 35. Nh5+ {[%clk 0:00:27]}  gxh5 {[%clk 0:00:47]} 36. Rg3+ {[%clk 0:00:27]}  Bg4 {[%clk 0:00:45]} 37. hxg4 {[%clk 0:00:20]}  Qh4+ {[%clk 0:00:44]} 38. Rh3 {[%clk 0:00:18]}  Qg5 {[%clk 0:00:44]} 39. Qd3 {[%clk 0:00:12]}  hxg4 {[%clk 0:00:42]} 40. Qh7+ {[%clk 0:00:07]}  Kf8 {[%clk 0:00:42]} 41. Rd3 {[%clk 0:00:03]}  g3 {[%clk 0:00:38]} 42. Kg1 {[%clk 0:00:02]}  b4 {[%clk 0:00:25]} 43. Rf3 {[%clk 0:00:02]}  Rc7 {[%clk 0:00:21]} 44. Ne2 {[%clk 0:00:02]}  Qg7 {[%clk 0:00:19]} 45. Qxg7+ {[%clk 0:00:02]}  Kxg7 {[%clk 0:00:19]} 46. Nxg3 {[%clk 0:00:03]}  Kf8 {[%clk 0:00:20]} 47. Kh2 {[%clk 0:00:02]}  Rc1 {[%clk 0:00:21]} 48. Bg6 {[%clk 0:00:02]}  Re7 {[%clk 0:00:21]} 49. Bh5 {[%clk 0:00:03]}  Rec7 {[%clk 0:00:18]} 50. Nf5 {[%clk 0:00:03]}  Nc8 {[%clk 0:00:18]} 51. Nxh6 {[%clk 0:00:03]}  Kg7 {[%clk 0:00:18]} 52. Nxf7 {[%clk 0:00:03]}  R1c3 {[%clk 0:00:19]} 53. Rf4 {[%clk 0:00:04]}  Ne7 {[%clk 0:00:17]} 54. Ng5 {[%clk 0:00:03]}  Ng6 {[%clk 0:00:17]} 55. Ne6+ {[%clk 0:00:03]}  Kh6 {[%clk 0:00:17]} 56. Bxg6 {[%clk 0:00:04]}  Kxg6 {[%clk 0:00:18]} 57. Rf6+ {[%clk 0:00:04]}  Kh5 {[%clk 0:00:17]} 58. Nxc7 {[%clk 0:00:05]}  Rxc7 {[%clk 0:00:18]} 59. Kh3 {[%clk 0:00:05]}  Kg5 {[%clk 0:00:18]} 60. g3 {[%clk 0:00:04]}  Rh7+ {[%clk 0:00:18]} 61. Kg2 {[%clk 0:00:04]}  Rc7 {[%clk 0:00:19]} 62. Rd6 {[%clk 0:00:04]}  Rc2+ {[%clk 0:00:20]} 63. Kh3 {[%clk 0:00:05]}  Rxa2 {[%clk 0:00:20]} 64. Rxd5 {[%clk 0:00:05]}  Kf5 {[%clk 0:00:19]} 65. g4+ {[%clk 0:00:05]}  Ke4 {[%clk 0:00:19]} 66. Rd7 {[%clk 0:00:05]}  Ra6 {[%clk 0:00:19]} 67. Rd6 {[%clk 0:00:04]}  Ra3 {[%clk 0:00:18]} 68. e6 {[%clk 0:00:04]}  Rxb3+ {[%clk 0:00:19]} 69. Kh4 {[%clk 0:00:05]}  Kf4 {[%clk 0:00:20]} 70. d5 {[%clk 0:00:04]}  Re3 {[%clk 0:00:20]} 71. Rd7 {[%clk 0:00:04]}  Re1 {[%clk 0:00:20]} 72. Kh5 {[%clk 0:00:04]}  Ke5 {[%clk 0:00:20]} 73. e7 {[%clk 0:00:04]}  Kf6 {[%clk 0:00:20]} 74. g5+ {[%clk 0:00:04]}  Kf5 {[%clk 0:00:19]} 75. Kh6 {[%clk 0:00:04]}  b3 {[%clk 0:00:18]} 76. d6 {[%clk 0:00:04]}  b2 {[%clk 0:00:18]} 77. Rb7 {[%clk 0:00:04]}  Rh1+ {[%clk 0:00:14]} 78. Kg7 {[%clk 0:00:04]} 1-0


[Site "https://www.chess.com"]

[Event "Titled Tuesday Blitz February 28 Early 2023"]
[White "Vaibhav Jayant Raut"]
[Black "Caruana, Fabiano"]
[WhiteFideId "5089034"]
[BlackFideId "2020009"]
[WhiteElo "2156"]
[BlackElo "2818"]
[Result "0-1"]
[Round "02"]
[TimeControl "180+2"]
[Date "2023.02.28"]
[WhiteClock "0:00:02"]
[BlackClock "0:00:41"]

1. d4 {[%clk 0:03:00]}  Nf6 {[%clk 0:02:59]} 2. Nf3 {[%clk 0:02:56]}  g6 {[%clk 0:02:58]} 3. g3 {[%clk 0:02:56]}  Bg7 {[%clk 0:02:58]} 4. Bg2 {[%clk 0:02:57]}  O-O {[%clk 0:02:59]} 5. O-O {[%clk 0:02:57]}  d6 {[%clk 0:03:00]} 6. c4 {[%clk 0:02:56]}  Bf5 {[%clk 0:03:00]} 7. Nc3 {[%clk 0:02:55]}  Ne4 {[%clk 0:03:00]} 8. Bd2 {[%clk 0:02:52]}  c6 {[%clk 0:02:57]} 9. Nh4 {[%clk 0:02:47]}  Nxd2 {[%clk 0:02:54]} 10. Qxd2 {[%clk 0:02:38]}  Be6 {[%clk 0:02:52]} 11. d5 {[%clk 0:02:35]}  cxd5 {[%clk 0:02:50]} 12. cxd5 {[%clk 0:02:32]}  Bd7 {[%clk 0:02:49]} 13. Rfc1 {[%clk 0:02:31]}  Na6 {[%clk 0:02:50]} 14. Nf3 {[%clk 0:02:25]}  Qb6 {[%clk 0:02:41]} 15. e3 {[%clk 0:02:25]}  Rfc8 {[%clk 0:02:39]} 16. Nd4 {[%clk 0:02:20]}  Nc5 {[%clk 0:02:31]} 17. Rc2 {[%clk 0:02:13]}  a5 {[%clk 0:02:25]} 18. Rd1 {[%clk 0:02:05]}  a4 {[%clk 0:02:24]} 19. h3 {[%clk 0:01:53]}  Qa5 {[%clk 0:02:23]} 20. Ne4 {[%clk 0:01:39]}  Nxe4 {[%clk 0:02:18]} 21. Rxc8+ {[%clk 0:01:37]}  Bxc8 {[%clk 0:02:18]} 22. Qxa5 {[%clk 0:01:38]}  Rxa5 {[%clk 0:02:18]} 23. Bxe4 {[%clk 0:01:38]}  Rc5 {[%clk 0:02:16]} 24. Rd2 {[%clk 0:01:27]}  Bxh3 {[%clk 0:02:15]} 25. b3 {[%clk 0:01:10]}  Bd7 {[%clk 0:02:09]} 26. bxa4 {[%clk 0:01:05]}  Bxa4 {[%clk 0:02:09]} 27. Rb2 {[%clk 0:01:04]}  Bxd4 {[%clk 0:02:06]} 28. exd4 {[%clk 0:01:03]}  Rc7 {[%clk 0:02:07]} 29. Rb4 {[%clk 0:01:01]}  Bd7 {[%clk 0:02:04]} 30. Kg2 {[%clk 0:01:01]}  Kg7 {[%clk 0:01:58]} 31. Kf3 {[%clk 0:01:00]}  Kg8 {[%clk 0:01:57]} 32. Kg2 {[%clk 0:00:53]}  Kg7 {[%clk 0:01:57]} 33. Kf3 {[%clk 0:00:53]}  Kf6 {[%clk 0:01:57]} 34. Ke3 {[%clk 0:00:51]}  h5 {[%clk 0:01:55]} 35. a4 {[%clk 0:00:50]}  g5 {[%clk 0:01:51]} 36. Kf3 {[%clk 0:00:48]}  h4 {[%clk 0:01:48]} 37. gxh4 {[%clk 0:00:43]}  gxh4 {[%clk 0:01:49]} 38. a5 {[%clk 0:00:38]}  Kg5 {[%clk 0:01:47]} 39. Rb1 {[%clk 0:00:35]}  Rc3+ {[%clk 0:01:43]} 40. Kg2 {[%clk 0:00:35]}  Bc8 {[%clk 0:01:40]} 41. Kh2 {[%clk 0:00:25]}  Kf4 {[%clk 0:01:39]} 42. Bg2 {[%clk 0:00:21]}  h3 {[%clk 0:01:36]} 43. Bh1 {[%clk 0:00:15]}  Rc2 {[%clk 0:01:35]} 44. Kg1 {[%clk 0:00:15]}  Ra2 {[%clk 0:01:33]} 45. Re1 {[%clk 0:00:13]}  f5 {[%clk 0:00:46]} 46. Rxe7 {[%clk 0:00:11]}  Rxa5 {[%clk 0:00:47]} 47. Rh7 {[%clk 0:00:08]}  b5 {[%clk 0:00:45]} 48. Rxh3 {[%clk 0:00:07]}  b4 {[%clk 0:00:45]} 49. Rb3 {[%clk 0:00:05]}  Ra1+ {[%clk 0:00:42]} 50. Kh2 {[%clk 0:00:04]}  Ra4 {[%clk 0:00:43]} 51. Bg2 {[%clk 0:00:04]}  Ba6 {[%clk 0:00:42]} 52. Rf3+ {[%clk 0:00:04]}  Kg5 {[%clk 0:00:42]} 53. Rb3 {[%clk 0:00:04]}  Bc4 {[%clk 0:00:41]} 54. Rb2 {[%clk 0:00:04]}  b3 {[%clk 0:00:41]} 55. Bf3 {[%clk 0:00:04]}  Ra2 {[%clk 0:00:41]} 56. Rb1 {[%clk 0:00:03]}  Rxf2+ {[%clk 0:00:40]} 57. Kg3 {[%clk 0:00:02]}  Rd2 {[%clk 0:00:41]} 0-1


[Site "https://www.chess.com"]